Cogmind - Beta 14 @@@ ROGUE MODE // 2024.10.15 @ 15:59:51 Player: laeb2 Result: Destroyed by S-10 Pest with Light Assault Rifle Performance ------------- Evolutions (0) 0 Regions Visited (4) 800 Robots Destroyed (18) 90 Value Destroyed (389) 389 Prototype IDs (26) 520 Alien Tech Used (0) 0 Bonus (300) 300 TOTAL SCORE: 2099 Bonus ------- Aligned with FarCom 300 Cogmind --------- Core Integrity 0/250 Matter 297/300 Energy 249/250 System Corruption 0% Temperature Cool (25) Movement Walking (120) Location -9/Mines Parts ------- > --- POWER (1) -------- Ion Engine > --- PROPULSION (2) --- Aluminum Leg Aluminum Leg > --- UTILITY (2) ------ Medium Storage Unit > --- WEAPON (2) ------- Medium Laser Light Assault Rifle > --- INVENTORY (10) --- Light Nuclear Core Light Treads Light Treads Improved Heat Sink Experimental Sensor Array Rocket Launcher Datajack Deploy-a-Sentry Deploy-a-Sentry Deploy-a-Sentry Peak State ------------ > --- POWER ------------ Ion Engine > --- PROPULSION ------- Aluminum Leg Aluminum Leg > --- UTILITY ---------- Medium Storage Unit Improved Terrain Scanner > --- WEAPON ----------- Medium Laser Light Assault Rifle > --- INVENTORY -------- Light Nuclear Core Light Treads Light Treads Improved Heat Sink Experimental Sensor Array Rocket Launcher Datajack Deploy-a-Sentry Deploy-a-Sentry Deploy-a-Sentry [Rating: 13] Favorites ----------- Power Ion Engine Engine Ion Engine Propulsion Aluminum Leg Treads Light Treads Leg Aluminum Leg Utility Improved Terrain Scanner Device Improved Terrain Scanner Storage Small Storage Unit Weapon Light Assault Rifle Energy Gun Medium Laser Ballistic Gun Light Assault Rifle Special Weapon Mining Laser Build | -11 -10 -10 -10 -9 ------- Run | Yrd Mat Min Exi Min Slots Evolved . | . . . . . Power . | . . . . . Propulsion . | . . . . . Utility . | . . . . . Weapon . | . . . . . Parts Attached 20 | 9 8 . 2 1 Power 2 | 1 1 . . . Engine 2 | 1 1 . . . Core . | . . . . . Reactor . | . . . . . Propulsion 7 | 2 4 . . 1 Treads 1 | . 1 . . . Leg 6 | 2 3 . . 1 Wheel . | . . . . . Hover . | . . . . . Flight . | . . . . . Utility 3 | 2 1 . . . Device 1 | 1 . . . . Storage 2 | 1 1 . . . Processor . | . . . . . Hackware . | . . . . . Protection . | . . . . . Artifact . | . . . . . Weapon 8 | 4 2 . 2 . Energy Gun 5 | 3 1 . 1 . Energy Cannon . | . . . . . Ballistic Gun 2 | . 1 . 1 . Ballistic Cannon . | . . . . . Launcher . | . . . . . Special Weapon 1 | 1 . . . . Impact Weapon . | . . . . . Slashing Weapon . | . . . . . Piercing Weapon . | . . . . . Special Melee Weapon . | . . . . . Unidentified Prototypes . | . . . . . Parts Lost 4 | . 3 . . 1 Power 1 | . 1 . . . Propulsion 1 | . 1 . . . Utility 1 | . . . . 1 Weapon 1 | . 1 . . . Highest Loss Streak 2 | . 2 . . 1 To Critical Strikes . | . . . . . Average Slot Usage (%) 99 | . 99 100 100 87 Engine 13 | . 13 14 14 14 Treads 1 | . 3 . . . Leg 26 | . 24 28 28 28 Device 13 | . 14 14 14 2 Storage 14 | . 14 14 14 14 Energy Gun 14 | . 14 14 14 14 Ballistic Gun 13 | . 13 14 14 14 Peak Build Rating 13 | 9 11 12 13 13 Average Rating 10 | 7 10 11 12 10 On Entrance 9 | . 9 11 12 13 Naked Turns . | . . . . . Heaviest Build 20 | 15 20 20 20 18 Greatest Support 20 | 20 20 20 20 20 Greatest Overweight (x) 1 | . 1 . . . Average Overweight (x) . | . . . . . Largest Inventory Capacity 10 | 8 10 10 10 10 Average Capacity 8 | 7 8 10 10 10 Most Carried 10 | 7 9 10 10 10 Average Carried 7 | 5 7 9 9 10 Final Capacity 10 | 8 10 10 10 10 Final Carried 10 | 6 9 10 10 10 Class Distribution -------------------- 51% | Mutant 48% | Scavenger-Mutant Dominant Class ---------------- Scavenger-Mutant | -10/Materials Scavenger-Mutant | -10/Mines Mutant | -10/Exiles Mutant | -9/Mines Resources | -11 -10 -10 -10 -9 ----------- Run | Yrd Mat Min Exi Min Matter Collected 455 | 268 152 . . 35 Remotely . | . . . . . Salvage Created 562 | 45 422 . . 95 Parts 41 | 6 32 . . 3 Haulers Intercepted 1 | . 1 . . . Recyclers Shooed 1 | . 1 . . . Parts Field Recycled . | . . . . . Retrieved Matter . | . . . . . Parts Self-Destructed . | . . . . . Prevented . | . . . . . Kills | -11 -10 -10 -10 -9 ------- Run | Yrd Mat Min Exi Min Combat Hostiles Destroyed 11 | . 9 . . 2 Guns 10 | . 8 . . 2 Classes Destroyed 7 | 1 6 . . . Tunneler 3 | 2 1 . . . Hauler 1 | . 1 . . . Recycler 1 | . 1 . . . Operator 1 | . 1 . . . Watcher 1 | . 1 . . . Swarmer 3 | . 3 . . . Grunt 8 | . 6 . . 2 Best Kill Streak 3 | 1 3 . . 2 Combat Bots Only 2 | . 2 . . 2 Max Kills in Single Turn 2 | 1 2 . . 1 Gunslinging . | . . . . . Exploded . | . . . . . Melee . | . . . . . Uniques/NPCs Destroyed . | . . . . . Combat | -11 -10 -10 -10 -9 -------- Run | Yrd Mat Min Exi Min Hostile Shots Fired 146 | . 113 . . 33 Missed 45 | . 37 . . 8 Damage Taken 1063 | . 780 . . 283 Core 250 | . 207 . . 43 Absorbed by Shields . | . . . . . Core Remaining (%) 100 | 100 . . . . Volleys Fired 127 | 48 66 . . 13 Largest 2 | 2 2 . . 2 Hottest 100 | 100 100 . . 70 Shots Fired 195 | 54 116 . . 25 Gun 153 | 12 116 . . 25 Cannon . | . . . . . Launcher . | . . . . . Special 42 | 42 . . . . Kinetic 74 | . 61 . . 13 Thermal 121 | 54 55 . . 12 Explosive . | . . . . . Electromagnetic . | . . . . . Robot Hit Streak 13 | 4 11 . . 13 Robot Miss Streak 16 | 1 16 . . 2 Penetration Max . | . . . . . Secondary Targets . | . . . . . Shots Hit Robots 82 | 8 55 . . 19 Core Hits 35 | 2 25 . . 8 Critical Kills . | . . . . . Critical Parts Destroyed . | . . . . . Critical Strikes 1 | . 1 . . . Burn 1 | . 1 . . . Melee Attacks . | . . . . . Impact . | . . . . . Slashing . | . . . . . Piercing . | . . . . . Sneak Attacks . | . . . . . Combat Hostiles . | . . . . . Follow-up Attacks . | . . . . . Damage Inflicted 1002 | 100 701 . . 201 Guns 1002 | 100 701 . . 201 Cannons . | . . . . . Explosions . | . . . . . Melee . | . . . . . Ramming . | . . . . . Kinetic 321 | . 249 . . 72 Thermal 681 | 100 452 . . 129 Explosive . | . . . . . Electromagnetic . | . . . . . Impact . | . . . . . Slashing . | . . . . . Piercing . | . . . . . Highest Corruption . | . . . . . Average Corruption . | . . . . . Corruption Purged . | . . . . . Corruption Blocked . | . . . . . Overload Shots . | . . . . . Overflow Damage . | . . . . . Projectiles . | . . . . . Explosions . | . . . . . Melee . | . . . . . Knockbacks . | . . . . . Impact . | . . . . . Kinetic . | . . . . . Secondary . | . . . . . Self-Inflicted Damage . | . . . . . Shots . | . . . . . Rammed . | . . . . . Targets Rammed . | . . . . . Kicked . | . . . . . Crushed . | . . . . . Highest Temperature 331 | 156 331 . . 242 Average Temperature 83 | 53 108 . . 124 Received Heat Transfer 402 | . 282 . . 120 Effects 6 | . 4 . . 2 Interference 6 | . 4 . . 2 Siege Activations . | . . . . . Robots Corrupted . | . . . . . Combat Hostiles . | . . . . . Parts Fried . | . . . . . Impact Corruptions . | . . . . . Robots Melted 1 | . 1 . . . Combat Hostiles 1 | . 1 . . . Parts Melted 4 | 3 1 . . . Heat Transferred 1887 | 296 1221 . . 370 Parts Sabotaged . | . . . . . Parts Stolen . | . . . . . Parts Stripped . | . . . . . Power Chain Reactions . | . . . . . Alert | -11 -10 -10 -10 -9 ------- Run | Yrd Mat Min Exi Min Peak Influence 194 | 10 194 . . 55 Initial . | . . . . . Average 31 | 2 75 . . 40 Maximum Alert Level . | . . . . . Low Security (%) 100 | 100 100 100 . 100 Level 1 . | . . . . . Level 2 . | . . . . . Level 3 . | . . . . . Level 4 . | . . . . . Level 5 . | . . . . . High Security . | . . . . . Max Security . | . . . . . Squads Dispatched 3 | . 3 . . . Investigation 2 | . 2 . . . Extermination . | . . . . . Reinforcement 1 | . 1 . . . Assault . | . . . . . Garrison . | . . . . . Intercept . | . . . . . Searches Triggered . | . . . . . Construction Impeded . | . . . . . Haulers Reinforced . | . . . . . Active Scanning Responses . | . . . . . Cargo Convoy Interrupts . | . . . . . Stealth | -11 -10 -10 -10 -9 --------- Run | Yrd Mat Min Exi Min Distress Signals . | . . . . . Communications Jammed . | . . . . . Distress Signals . | . . . . . Times Spotted 22 | . 16 . . 6 Peak Tracking Total 4 | . 3 . . 4 Tactical Retreats 1 | . 1 . . . Traps | -11 -10 -10 -10 -9 ------- Run | Yrd Mat Min Exi Min Traps Triggered 1 | . 1 . . . Indirectly . | . . . . . Trap Hack Attempts . | . . . . . Triggered . | . . . . . Disarmed . | . . . . . Reprogrammed . | . . . . . Reused . | . . . . . Traps Extracted . | . . . . . Installed . | . . . . . Triggered . | . . . . . Machines | -11 -10 -10 -10 -9 ---------- Run | Yrd Mat Min Exi Min Machines Disabled . | . . . . . Max in Single Turn . | . . . . . Machines Repaired . | . . . . . Machines Dismantled . | . . . . . Machines Sabotaged . | . . . . . Overloaded Fab Kills . | . . . . . Hacking | -11 -10 -10 -10 -9 --------- Run | Yrd Mat Min Exi Min Machines Accessed 5 | . 4 . 1 . Terminals 3 | . 3 . . . Fabricators . | . . . . . Repair Stations . | . . . . . Recycling Units 1 | . 1 . . . Scanalyzers . | . . . . . Garrison Access . | . . . . . Total Hacks 14 | . 13 . 1 . Successful 8 | . 7 . 1 . Failed 6 | . 6 . . . Catastrophic . | . . . . . Database Lockouts . | . . . . . Manual 13 | . 12 . 1 . Terminals 9 | . 9 . . . Fabricators . | . . . . . Repair Stations . | . . . . . Recycling Units 4 | . 4 . . . Scanalyzers . | . . . . . Garrison Access . | . . . . . Terminal Hacks 3 | . 2 . 1 . Robot Analysis 1 | . 1 . . . Prototype ID Bank 1 | . 1 . . . Derelict Proto ID Bank 1 | . . . 1 . Fabricator Hacks . | . . . . . Repair Station Hacks . | . . . . . Recycling Unit Hacks 1 | . 1 . . . Report Inventory 1 | . 1 . . . Scanalyzer . | . . . . . Garrison Access Hacks . | . . . . . Unauthorized Hacks 4 | . 4 . . . Terminals 2 | . 2 . . . Botnet 1 | . 1 . . . Operators 1 | . 1 . . . Fabricators . | . . . . . Repair Stations . | . . . . . Recycling Units 2 | . 2 . . . Mask 1 | . 1 . . . Tunnel 1 | . 1 . . . Scanalyzers . | . . . . . Garrison Access . | . . . . . Data Cores Recovered . | . . . . . Used . | . . . . . Hacking Detections 3 | . 3 . . . Full Trace Events . | . . . . . Feedback Events . | . . . . . Feedback Blocked . | . . . . . Robot Schematics Acquired . | . . . . . Robots Built . | . . . . . Authchips . | . . . . . Time . | . . . . . Total Robot Build Rating . | . . . . . Part Schematics Acquired . | . . . . . Parts Built . | . . . . . Authchips . | . . . . . Time . | . . . . . Total Part Build Rating . | . . . . . Parts Repaired . | . . . . . Time . | . . . . . Parts Recycled . | . . . . . Recycled Matter . | . . . . . Retrieved Matter . | . . . . . Retrieved Components . | . . . . . Parts Scanalyzed . | . . . . . Part Schematics Acquired . | . . . . . Parts Damaged . | . . . . . Bothacking | -11 -10 -10 -10 -9 ------------ Run | Yrd Mat Min Exi Min Used RIF Installer . | . . . . . Robots Hacked . | . . . . . Non-combat . | . . . . . Combat . | . . . . . Robot Hacks Applied . | . . . . . Relay Couplers Released . | . . . . . Fabnet Peak Effective % . | . . . . . Robots Rewired . | . . . . . Allies Hacked . | . . . . . Hacks Repelled . | . . . . . Allies | -11 -10 -10 -10 -9 -------- Run | Yrd Mat Min Exi Min Total Allies . | . . . . . Largest Group . | . . . . . Highest-Rated Group . | . . . . . Highest-Rated Ally . | . . . . . Total Orders . | . . . . . Ally Attacks . | . . . . . Total Damage . | . . . . . Kills . | . . . . . Allies Corrupted . | . . . . . Allies Melted . | . . . . . Intel | -11 -10 -10 -10 -9 ------- Run | Yrd Mat Min Exi Min Robot Analysis Total 1 | . 1 . . . Derelict Logs Recovered 3 | . . 3 . . Drone Launches . | . . . . . Drone Recoveries . | . . . . . Exploration | -11 -10 -10 -10 -9 ------------- Run | Yrd Mat Min Exi Min Turns Passed 2546 | 782 885 522 288 69 Spaces Moved 1003 | 162 385 218 222 16 Core 8 | 8 . . . . Treads 7 | . 7 . . . Legs 988 | 154 378 218 222 16 Wheels . | . . . . . Hover . | . . . . . Flight . | . . . . . Fastest Speed 50 | 50 120 120 120 120 Average Speed 125 | 116 135 120 120 120 Slowest Speed 190 | 120 190 120 120 120 Overloaded Moves . | . . . . . Propulsion Burnouts . | . . . . . Robots Hopped . | . . . . . Cave-ins Triggered . | . . . . . Exploration Rate (%) 35 | 10 59 63 42 4 Regions Visited 4 Branch Regions 3 Pre-discovered Areas 1 | . 1 . . . Known Exits Taken 1 | . . . 1 . Unknown Exits Taken 3 | 1 1 1 . . Scrap Searched 2 | . . 2 . . Spaces Dug 1 | 1 . . . . Terrain Destroyed 4 | 4 . . . . Melee . | . . . . . Projectile 4 | 4 . . . . AOE . | . . . . . Terrain Rammed . | . . . . . Walls Destroyed . | . . . . . Machines Disabled . | . . . . . Actions | -11 -10 -10 -10 -9 --------- Run | Yrd Mat Min Exi Min Total 2030 | 616 646 479 244 45 Wait 845 | 385 174 257 15 14 Move 999 | 161 384 217 221 16 Hop . | . . . . . Pick Up 28 | 13 9 3 3 . Fast Attach . | . . . . . Attach 11 | 7 3 . 1 . Detach . | . . . . . Swap 9 | 2 5 . 1 1 Drop 11 | . 5 2 3 1 Fire 127 | 48 66 . . 13 Melee . | . . . . . Ram . | . . . . . Kick . | . . . . . Crush . | . . . . . Escape Stasis . | . . . . . Rewire . | . . . . . Trap . | . . . . . Miscellaneous . | . . . . . Route ------- -11/Scrapyard -10/Materials (discovered 3 exits: [*Mat] / [*Min x2]) -10/Mines (discovered 4 exits: [*Mat x2] / *Exi / [*Sub]) -10/Exiles (discovered 2 exits: *Min x2) -9/Mines History --------- Turn | Location | Event 2 | -11/Scrapyard | Met Revision 17 5 | -11/Scrapyard | Discovered new exit (range 15) 783 | -11/Scrapyard | Entered Materials 803 | -10/Materials | Build established: Mutant 884 | -10/Materials | Core integrity fell below 50% 1068 | -10/Materials | Discovered new exit (range 5) 1164 | -10/Materials | Discovered new exit (range 4) 1271 | -10/Materials | Discovered new exit (range 16) 1291 | -10/Materials | Core integrity fell below 20% 1416 | -10/Materials | Build established: Scavenger-Mutant 1668 | -10/Materials | Entered Mines 1680 | -10/Mines | Learned Materials security intel 1720 | -10/Mines | Discovered new exit (range 6) 1852 | -10/Mines | Discovered new exit (range 5) 1893 | -10/Mines | Found a damaged Exp. Sensor Array with a note attached 1896 | -10/Mines | Found Prototype Device 2095 | -10/Mines | Discovered new exit (range 13) 2097 | -10/Mines | Discovered new exit (range 5) 2165 | -10/Mines | Received a Rocket Launcher from a helpful Derelict 2185 | -10/Mines | Deemed a non-threat by the Exiles lab entrance 2190 | -10/Mines | Entered Exiles 2191 | -10/Exiles | Identified exit to Mines 2219 | -10/Exiles | Met 8R-AWN 2241 | -10/Exiles | Met EX-HEX 2273 | -10/Exiles | Met EX-BIN 2286 | -10/Exiles | Aligned with FarCom system 2288 | -10/Exiles | Given EX-Vault access code 2315 | -10/Exiles | Opened EX-Vault 2326 | -10/Exiles | Found Deploy-a-Sentry 2330 | -10/Exiles | Found Deploy-a-Sentry 2332 | -10/Exiles | Found Deploy-a-Sentry 2359 | -10/Exiles | Warned to stay clear of 0b10 Research branches 2478 | -10/Exiles | Left Exiles lab with Deploy-a-Sentry 2478 | -10/Exiles | Entered Mines 2547 | -9/Mines | Destroyed by S-10 Pest with Light Assault Rifle Last Messages --------------- And if we have to leave here due to unforeseen circumstances, don't worry the FarCom system will continue to maintain contact via our distributed network. EX-BIN: And don't even think about spreading that code around. We're gonna change it right after you leave. Most certainly not to something like 1234 which I did last time as a little joke and some thief managed to sneak in here and steal a few of HEX's prototypes. LOCATION=MINES GOAL=ESCAPE Receiving FarCom transmissions... Imp. Terrain Scanner destroyed. G-47 Trooper destroyed. G-34 Mercenary destroyed. Overheating: System interference. Med. Laser temporarily disabled. Dropped Aluminum Leg. Acquired 35 matter. Map ----- +----------------------------------------------------+ | ????????????????????????????????? | | ????????????????????????????????? | | ????????????????????????????????? | | ????????????????????????????????? | | ????????????????????????????????? | | ????????????????????????????????? | | ????????????????????????????????? | | ????????????????????????????????? | | ????????????????????????????????? | | ????????????????????????????????? | | ????????????????????????????????? | | ????????????????????????????????? | | ????????????????????????????????? | | ????????????????????????????????? | | ????????????????????????????????? | | ?????????????????#??????????????? | | ?????????????????? ?????????????? | | ??????????????????? ????????????? | | ???????????????????? ???????????? | | ????????????????????# ??????????? | | ??????????????????### ?????????? | | ??????????????????? #####????? | | ????????????????????? s #????? | | ??????????????????????? s #????? | | ????????????????????????#ss#????? | | ????????????????????????#@ #????? | | ???????????????#????????# #????? | | ????????????????????????# #????? | | ????????????????????????# #????? | | ????????????????????????# #????? | | ????????????????????????# #????? | | ????????????????????????# #????? | | ????????????????????##### ##???? | | ????????????????????# [ #??#? | | ????????????????????# % #???? | | ????????????????????# #???? | | ????????????????????# =% #???? | | ????????????????????# [ #???? | | ????????????????????#########???? | | ????????????????????????????????? | | ????????????????????????????????? | | ????????????????????????????????? | | | | | | | | | | | | | | | | | +----------------------------------------------------+ Best States ------------- Heat Dissipation 25 Energy Generation 10 Energy Capacity 250 Matter Stores 300 Matter Capacity 300 Sight Range 16 Terrain Scan Range 16 Terrain Scan Density 10 Evasion (%) 55 Recoil Reduction 1 Item Schematics ----------------- None Robot Schematics ------------------ None Fabricated ------------ Nothing Alien Tech Used ----------------- None Achievements -------------- None Challenges ------------ None Game ------ Seed ArchitectGravmagFragment Manual? 0 Play Time 00:14:56 Cumulative 52.2 hours Start 2024.10.15 @ 15:36:03 End 2024.10.15 @ 15:59:51 Sessions 1 Manual Loads 0 Difficulty Rogue Special Mode None Game No. 72 Rogue 72 Adventurer 0 Explorer 0 Win Type - Total 1 Types 1/0/0/0/0/0/0/0/0 Lore% 37 Gallery% 43 Achievement% 40 Wizard Run 0 Options --------- Layout 1 ASCII 0 Keyboard 0 Movement Mouse Keybinds 0 Fullscreen 1 Font 32/SmallcapsGlow Map View 50x35 Zoom Use 0% Tactical HUD 0 Map Filters NONE Filters NONE Steam 1 RUN: 486c5780-764f-4d36-bc14-0be570ef9799